[Event "Titled Tuesday Blitz April 4 Early 2023"]
[White "Topalov, Aleksandar"]
[Black "Fiorito, Joaquin"]
[WhiteFideId "925659"]
[BlackFideId "180173"]
[WhiteElo "2151"]
[BlackElo "2157"]
[Result "1-0"]
[Round "08"]
[TimeControl "180+2"]
[Date "2023.04.04"]
[WhiteClock "0:00:17"]
[BlackClock "0:00:24"]

1. b3 {[%clk 0:01:59]}  d5 {[%clk 0:02:59]} 2. Bb2 {[%clk 0:02:00]}  Nf6 {[%clk 0:02:58]} 3. Nf3 {[%clk 0:02:00]}  c6 {[%clk 0:02:57]} 4. g3 {[%clk 0:01:59]}  Bf5 {[%clk 0:02:57]} 5. Bg2 {[%clk 0:01:59]}  e6 {[%clk 0:02:58]} 6. O-O {[%clk 0:02:00]}  Be7 {[%clk 0:02:59]} 7. d3 {[%clk 0:02:00]}  h6 {[%clk 0:02:59]} 8. Nbd2 {[%clk 0:02:00]}  O-O {[%clk 0:02:58]} 9. c4 {[%clk 0:01:58]}  a5 {[%clk 0:02:58]} 10. a3 {[%clk 0:01:58]}  Nbd7 {[%clk 0:02:58]} 11. Ra2 {[%clk 0:01:59]}  Re8 {[%clk 0:02:51]} 12. Qa1 {[%clk 0:01:58]}  Bh7 {[%clk 0:02:51]} 13. Ne5 {[%clk 0:01:58]}  Bf8 {[%clk 0:02:47]} 14. Ndf3 {[%clk 0:01:45]}  Nxe5 {[%clk 0:02:17]} 15. Nxe5 {[%clk 0:01:44]}  Nd7 {[%clk 0:02:14]} 16. Nxd7 {[%clk 0:01:41]}  Qxd7 {[%clk 0:02:15]} 17. Rc1 {[%clk 0:01:35]}  Rad8 {[%clk 0:02:07]} 18. Bc3 {[%clk 0:01:29]}  b6 {[%clk 0:02:02]} 19. Be1 {[%clk 0:01:10]}  e5 {[%clk 0:01:52]} 20. cxd5 {[%clk 0:01:09]}  cxd5 {[%clk 0:01:52]} 21. Rac2 {[%clk 0:01:09]}  e4 {[%clk 0:01:37]} 22. dxe4 {[%clk 0:01:06]}  dxe4 {[%clk 0:01:33]} 23. Rc7 {[%clk 0:01:04]}  Qb5 {[%clk 0:01:33]} 24. Qb2 {[%clk 0:00:50]}  e3 {[%clk 0:01:31]} 25. f4 {[%clk 0:00:41]}  Bc5 {[%clk 0:01:30]} 26. Bc6 {[%clk 0:00:33]}  Qa6 {[%clk 0:01:05]} 27. Bxe8 {[%clk 0:00:29]}  Rxe8 {[%clk 0:01:06]} 28. b4 {[%clk 0:00:29]}  axb4 {[%clk 0:00:56]} 29. axb4 {[%clk 0:00:28]}  Qb5 {[%clk 0:00:34]} 30. Qa2 {[%clk 0:00:24]}  Bf8 {[%clk 0:00:24]} 31. Qxf7+ {[%clk 0:00:21]}  Kh8 {[%clk 0:00:24]} 32. Rc8 {[%clk 0:00:17]} 1-0


[Site "https://www.chess.com"]

[Event "Titled Tuesday Blitz April 4 Early 2023"]
[White "Krzywda, Andrzej"]
[Black "Ordekalog"]
[WhiteFideId "1114565"]
[WhiteElo "2155"]
[BlackElo "2541"]
[Result "0-1"]
[Round "08"]
[TimeControl "180+2"]
[Date "2023.04.04"]
[WhiteClock "0:00:05"]
[BlackClock "0:01:25"]

1. e4 {[%clk 0:02:57]}  d5 {[%clk 0:02:59]} 2. exd5 {[%clk 0:02:56]}  Qxd5 {[%clk 0:02:58]} 3. Nc3 {[%clk 0:02:57]}  Qa5 {[%clk 0:02:57]} 4. d4 {[%clk 0:02:57]}  Nf6 {[%clk 0:02:57]} 5. Nf3 {[%clk 0:02:57]}  Bg4 {[%clk 0:02:56]} 6. Be2 {[%clk 0:02:48]}  Nc6 {[%clk 0:02:43]} 7. h3 {[%clk 0:02:46]}  Bh5 {[%clk 0:02:42]} 8. Bd2 {[%clk 0:02:20]}  O-O-O {[%clk 0:02:35]} 9. Nb5 {[%clk 0:01:59]}  Qb6 {[%clk 0:02:35]} 10. c3 {[%clk 0:01:56]}  Bxf3 {[%clk 0:02:33]} 11. gxf3 {[%clk 0:01:57]}  e5 {[%clk 0:02:32]} 12. O-O {[%clk 0:01:46]}  exd4 {[%clk 0:02:17]} 13. Nxd4 {[%clk 0:01:45]}  Nxd4 {[%clk 0:02:17]} 14. cxd4 {[%clk 0:01:46]}  Qxd4 {[%clk 0:02:16]} 15. Bc3 {[%clk 0:01:43]}  Qf4 {[%clk 0:02:12]} 16. Qc1 {[%clk 0:01:15]}  Qf5 {[%clk 0:02:09]} 17. Qe3 {[%clk 0:00:58]}  Bd6 {[%clk 0:01:59]} 18. f4 {[%clk 0:00:34]}  Kb8 {[%clk 0:01:48]} 19. Be5 {[%clk 0:00:29]}  Rhe8 {[%clk 0:01:44]} 20. Bd3 {[%clk 0:00:23]}  Qh5 {[%clk 0:01:41]} 21. Qg3 {[%clk 0:00:18]}  Rxe5 {[%clk 0:01:29]} 22. fxe5 {[%clk 0:00:19]}  Bxe5 {[%clk 0:01:29]} 23. Qe3 {[%clk 0:00:13]}  Nd5 {[%clk 0:01:28]} 24. Qe4 {[%clk 0:00:11]}  Nf4 {[%clk 0:01:26]} 25. Rad1 {[%clk 0:00:08]}  Qxh3 {[%clk 0:01:25]} 26. Bc2 {[%clk 0:00:06]}  Ne2+ {[%clk 0:01:24]} 27. Qxe2 {[%clk 0:00:05]}  Qh2# {[%clk 0:01:25]} 0-1


[Site "https://www.chess.com"]

[Event "Titled Tuesday Blitz April 4 Early 2023"]
[White "Weishaeutel, Moritz"]
[Black "Ovezdurdyyeva, Jemal"]
[WhiteFideId "12967300"]
[BlackFideId "14001888"]
[WhiteElo "2301"]
[BlackElo "2043"]
[Result "1-0"]
[Round "08"]
[TimeControl "180+2"]
[Date "2023.04.04"]
[WhiteClock "0:01:17"]
[BlackClock "0:01:12"]

1. e4 {[%clk 0:03:00]}  d6 {[%clk 0:02:58]} 2. f4 {[%clk 0:03:00]}  Nf6 {[%clk 0:02:57]} 3. Nc3 {[%clk 0:02:59]}  g6 {[%clk 0:02:57]} 4. Nf3 {[%clk 0:02:58]}  Bg7 {[%clk 0:02:57]} 5. Bc4 {[%clk 0:02:58]}  c6 {[%clk 0:02:57]} 6. e5 {[%clk 0:02:57]}  dxe5 {[%clk 0:02:56]} 7. fxe5 {[%clk 0:02:57]}  Nd5 {[%clk 0:02:57]} 8. O-O {[%clk 0:02:56]}  O-O {[%clk 0:02:56]} 9. d4 {[%clk 0:02:56]}  b5 {[%clk 0:02:51]} 10. Bxd5 {[%clk 0:02:51]}  cxd5 {[%clk 0:02:49]} 11. Nxb5 {[%clk 0:02:51]}  Nc6 {[%clk 0:02:44]} 12. Nc3 {[%clk 0:02:49]}  Bg4 {[%clk 0:02:39]} 13. Be3 {[%clk 0:02:47]}  e6 {[%clk 0:02:37]} 14. h3 {[%clk 0:02:45]}  Bf5 {[%clk 0:02:36]} 15. g4 {[%clk 0:02:26]}  Be4 {[%clk 0:02:36]} 16. Nxe4 {[%clk 0:02:27]}  dxe4 {[%clk 0:02:36]} 17. Ng5 {[%clk 0:02:28]}  Qd5 {[%clk 0:02:28]} 18. c4 {[%clk 0:02:03]}  Qxc4 {[%clk 0:02:24]} 19. Nxe4 {[%clk 0:02:04]}  Qd5 {[%clk 0:02:12]} 20. Qf3 {[%clk 0:01:36]}  Nxd4 {[%clk 0:02:08]} 21. Nf6+ {[%clk 0:01:35]}  Bxf6 {[%clk 0:02:06]} 22. Qxf6 {[%clk 0:01:36]}  Nc6 {[%clk 0:01:31]} 23. Bh6 {[%clk 0:01:17]}  Qxe5 {[%clk 0:01:29]} 24. Qxe5 {[%clk 0:01:18]}  Nxe5 {[%clk 0:01:29]} 25. Bxf8 {[%clk 0:01:19]}  Kxf8 {[%clk 0:01:25]} 26. Rae1 {[%clk 0:01:16]}  Nd3 {[%clk 0:01:23]} 27. Rxe6 {[%clk 0:01:16]}  Nxb2 {[%clk 0:01:20]} 28. Ref6 {[%clk 0:01:16]}  a5 {[%clk 0:01:12]} 29. Rxf7+ {[%clk 0:01:17]}  Kg8 {[%clk 0:01:12]} 30. Rb7 {[%clk 0:01:17]} 1-0


[Site "https://www.chess.com"]

[Event "Titled Tuesday Blitz April 4 Early 2023"]
[White "Tsotsonava, Elene"]
[Black "Chernomordik, Pavel"]
[WhiteFideId "13615939"]
[BlackFideId "2804530"]
[WhiteElo "1829"]
[BlackElo "2193"]
[Result "0-1"]
[Round "08"]
[TimeControl "180+2"]
[Date "2023.04.04"]
[WhiteClock "0:00:53"]
[BlackClock "0:01:10"]

1. e4 {[%clk 0:02:56]}  g6 {[%clk 0:02:59]} 2. d4 {[%clk 0:02:56]}  Bg7 {[%clk 0:02:58]} 3. Nc3 {[%clk 0:02:57]}  d6 {[%clk 0:02:58]} 4. f4 {[%clk 0:02:57]}  a6 {[%clk 0:02:58]} 5. Nf3 {[%clk 0:02:56]}  b5 {[%clk 0:02:57]} 6. Bd3 {[%clk 0:02:55]}  Nd7 {[%clk 0:02:57]} 7. Be3 {[%clk 0:02:55]}  Bb7 {[%clk 0:02:52]} 8. e5 {[%clk 0:02:54]}  b4 {[%clk 0:02:43]} 9. Ne4 {[%clk 0:02:52]}  Nh6 {[%clk 0:02:39]} 10. Qd2 {[%clk 0:02:47]}  Nf5 {[%clk 0:02:28]} 11. Bf2 {[%clk 0:02:45]}  c5 {[%clk 0:02:27]} 12. dxc5 {[%clk 0:02:38]}  dxe5 {[%clk 0:02:26]} 13. Qxb4 {[%clk 0:02:17]}  Rb8 {[%clk 0:02:25]} 14. Qa4 {[%clk 0:02:13]}  Qc7 {[%clk 0:02:21]} 15. O-O-O {[%clk 0:01:59]}  O-O {[%clk 0:02:12]} 16. Bxa6 {[%clk 0:01:59]}  Bc6 {[%clk 0:02:07]} 17. Qc4 {[%clk 0:01:38]}  exf4 {[%clk 0:02:04]} 18. Nd4 {[%clk 0:01:35]}  Bxe4 {[%clk 0:01:49]} 19. Nb5 {[%clk 0:01:33]}  Qc6 {[%clk 0:01:34]} 20. a4 {[%clk 0:01:22]}  Ne5 {[%clk 0:01:31]} 21. Qe2 {[%clk 0:01:16]}  Bxg2 {[%clk 0:01:27]} 22. Rhg1 {[%clk 0:01:14]}  Bf3 {[%clk 0:01:26]} 23. Qe1 {[%clk 0:01:11]}  Bxd1 {[%clk 0:01:24]} 24. Qxd1 {[%clk 0:01:12]}  Rfd8 {[%clk 0:01:22]} 25. Qe1 {[%clk 0:01:12]}  Nf3 {[%clk 0:01:20]} 26. Na7 {[%clk 0:01:06]}  Qxa4 {[%clk 0:01:15]} 27. c6 {[%clk 0:00:53]}  Qa1# {[%clk 0:01:10]} 0-1


[Site "https://www.chess.com"]

[Event "Titled Tuesday Blitz April 4 Early 2023"]
[White "Petrova, Irina"]
[Black "Vemparala, Nikash"]
[WhiteFideId "14124122"]
[BlackFideId "30960967"]
[WhiteElo "2084"]
[BlackElo "2023"]
[Result "0-1"]
[Round "08"]
[TimeControl "180+2"]
[Date "2023.04.04"]
[WhiteClock "0:00:59"]
[BlackClock "0:00:58"]

1. e4 {[%clk 0:03:00]}  e5 {[%clk 0:02:59]} 2. Nf3 {[%clk 0:03:00]}  Nc6 {[%clk 0:02:59]} 3. Bb5 {[%clk 0:03:01]}  Nf6 {[%clk 0:02:55]} 4. d3 {[%clk 0:02:59]}  Bc5 {[%clk 0:02:53]} 5. Nc3 {[%clk 0:02:58]}  O-O {[%clk 0:02:46]} 6. Bg5 {[%clk 0:02:56]}  h6 {[%clk 0:02:29]} 7. Bh4 {[%clk 0:02:54]}  Nd4 {[%clk 0:02:12]} 8. Bc4 {[%clk 0:02:40]}  d6 {[%clk 0:02:07]} 9. Nxd4 {[%clk 0:02:36]}  Bxd4 {[%clk 0:01:59]} 10. Qf3 {[%clk 0:02:24]}  Bxc3+ {[%clk 0:01:54]} 11. bxc3 {[%clk 0:02:24]}  Be6 {[%clk 0:01:55]} 12. Bb3 {[%clk 0:02:20]}  c6 {[%clk 0:01:47]} 13. Bxf6 {[%clk 0:02:03]}  Qxf6 {[%clk 0:01:48]} 14. Qxf6 {[%clk 0:02:03]}  gxf6 {[%clk 0:01:48]} 15. g3 {[%clk 0:01:58]}  d5 {[%clk 0:01:48]} 16. exd5 {[%clk 0:01:57]}  cxd5 {[%clk 0:01:49]} 17. f4 {[%clk 0:01:56]}  Rac8 {[%clk 0:01:48]} 18. Kd2 {[%clk 0:01:55]}  Rc7 {[%clk 0:01:46]} 19. Rae1 {[%clk 0:01:54]}  exf4 {[%clk 0:01:33]} 20. gxf4 {[%clk 0:01:55]}  Rfc8 {[%clk 0:01:34]} 21. Rhg1+ {[%clk 0:01:55]}  Kf8 {[%clk 0:01:30]} 22. f5 {[%clk 0:01:38]}  Bxf5 {[%clk 0:01:28]} 23. Rgf1 {[%clk 0:01:37]}  Bg6 {[%clk 0:01:25]} 24. Rxf6 {[%clk 0:01:36]}  Rxc3 {[%clk 0:01:25]} 25. Ref1 {[%clk 0:01:34]}  Kg7 {[%clk 0:01:22]} 26. R6f2 {[%clk 0:01:29]}  b5 {[%clk 0:01:18]} 27. Kc1 {[%clk 0:01:26]}  Rxd3 {[%clk 0:01:13]} 28. Kb2 {[%clk 0:01:21]}  Rdc3 {[%clk 0:01:09]} 29. Bxd5 {[%clk 0:01:18]}  Rxc2+ {[%clk 0:01:08]} 30. Rxc2 {[%clk 0:01:15]}  Rxc2+ {[%clk 0:01:09]} 31. Kb3 {[%clk 0:01:14]}  Rxh2 {[%clk 0:01:08]} 32. Kb4 {[%clk 0:01:06]}  h5 {[%clk 0:00:59]} 33. Kxb5 {[%clk 0:01:06]}  Bd3+ {[%clk 0:00:59]} 34. Kc6 {[%clk 0:00:59]}  Bxf1 {[%clk 0:00:58]} 0-1


[Site "https://www.chess.com"]

[Event "Titled Tuesday Blitz April 4 Early 2023"]
[White "Rodchenkov, Sergey D."]
[Black "Jimenez Jimenez, Leandro"]
[WhiteFideId "4168712"]
[BlackFideId "6415253"]
[WhiteElo "2277"]
[BlackElo "2263"]
[Result "0-1"]
[Round "08"]
[TimeControl "180+2"]
[Date "2023.04.04"]
[WhiteClock "0:00:02"]
[BlackClock "0:00:04"]

1. e4 {[%clk 0:03:00]}  e5 {[%clk 0:02:59]} 2. Nf3 {[%clk 0:03:01]}  Nc6 {[%clk 0:02:59]} 3. Bc4 {[%clk 0:03:00]}  Bc5 {[%clk 0:02:59]} 4. O-O {[%clk 0:03:00]}  Nf6 {[%clk 0:02:59]} 5. d3 {[%clk 0:03:00]}  d6 {[%clk 0:03:00]} 6. c3 {[%clk 0:03:00]}  a6 {[%clk 0:03:00]} 7. Nbd2 {[%clk 0:03:01]}  Ba7 {[%clk 0:03:00]} 8. Bb3 {[%clk 0:03:01]}  Ne7 {[%clk 0:02:56]} 9. d4 {[%clk 0:02:59]}  Ng6 {[%clk 0:02:56]} 10. Re1 {[%clk 0:02:59]}  O-O {[%clk 0:02:55]} 11. Nf1 {[%clk 0:02:58]}  Re8 {[%clk 0:02:26]} 12. Ng5 {[%clk 0:02:36]}  Re7 {[%clk 0:02:18]} 13. h3 {[%clk 0:02:33]}  h6 {[%clk 0:02:13]} 14. Nf3 {[%clk 0:02:33]}  exd4 {[%clk 0:02:13]} 15. Ng3 {[%clk 0:02:31]}  dxc3 {[%clk 0:02:10]} 16. bxc3 {[%clk 0:02:32]}  Qe8 {[%clk 0:02:07]} 17. Qc2 {[%clk 0:02:26]}  Nd7 {[%clk 0:02:02]} 18. Nf5 {[%clk 0:02:11]}  Nc5 {[%clk 0:01:57]} 19. Nxe7+ {[%clk 0:02:10]}  Qxe7 {[%clk 0:01:56]} 20. Be3 {[%clk 0:02:04]}  Be6 {[%clk 0:01:38]} 21. Rad1 {[%clk 0:02:01]}  Qf6 {[%clk 0:01:33]} 22. Nd4 {[%clk 0:01:36]}  Bd7 {[%clk 0:01:23]} 23. Nf5 {[%clk 0:01:22]}  Ne5 {[%clk 0:01:08]} 24. f4 {[%clk 0:01:14]}  Ng6 {[%clk 0:01:05]} 25. Bd4 {[%clk 0:01:07]}  Nxb3 {[%clk 0:01:01]} 26. axb3 {[%clk 0:01:07]}  Bxd4+ {[%clk 0:01:00]} 27. cxd4 {[%clk 0:01:08]}  Bxf5 {[%clk 0:00:58]} 28. exf5 {[%clk 0:01:07]}  Nxf4 {[%clk 0:00:58]} 29. Kh2 {[%clk 0:00:55]}  c6 {[%clk 0:00:53]} 30. Re4 {[%clk 0:00:48]}  Nd5 {[%clk 0:00:37]} 31. Rde1 {[%clk 0:00:48]}  Kh7 {[%clk 0:00:37]} 32. Qf2 {[%clk 0:00:35]}  a5 {[%clk 0:00:31]} 33. Rf1 {[%clk 0:00:29]}  a4 {[%clk 0:00:27]} 34. bxa4 {[%clk 0:00:25]}  Rxa4 {[%clk 0:00:27]} 35. Qc2 {[%clk 0:00:21]}  Rxd4 {[%clk 0:00:23]} 36. Rxd4 {[%clk 0:00:22]}  Qxd4 {[%clk 0:00:23]} 37. f6+ {[%clk 0:00:22]}  g6 {[%clk 0:00:24]} 38. Qf2 {[%clk 0:00:21]}  Qxf2 {[%clk 0:00:20]} 39. Rxf2 {[%clk 0:00:22]}  g5 {[%clk 0:00:20]} 40. g4 {[%clk 0:00:19]}  Kg6 {[%clk 0:00:20]} 41. Rb2 {[%clk 0:00:19]}  b5 {[%clk 0:00:17]} 42. Rc2 {[%clk 0:00:17]}  Nb4 {[%clk 0:00:17]} 43. Rd2 {[%clk 0:00:17]}  d5 {[%clk 0:00:15]} 44. Rf2 {[%clk 0:00:16]}  d4 {[%clk 0:00:13]} 45. Kg3 {[%clk 0:00:15]}  Nd5 {[%clk 0:00:12]} 46. Rd2 {[%clk 0:00:14]}  c5 {[%clk 0:00:12]} 47. Kf3 {[%clk 0:00:15]}  Kxf6 {[%clk 0:00:11]} 48. Ke4 {[%clk 0:00:15]}  Nc3+ {[%clk 0:00:12]} 49. Kd3 {[%clk 0:00:12]}  Ke5 {[%clk 0:00:12]} 50. Rf2 {[%clk 0:00:12]}  c4+ {[%clk 0:00:12]} 51. Kc2 {[%clk 0:00:13]}  Ke6 {[%clk 0:00:08]} 52. Rd2 {[%clk 0:00:11]}  Ne4 {[%clk 0:00:07]} 53. Rxd4 {[%clk 0:00:10]}  Nd6 {[%clk 0:00:05]} 54. Rd1 {[%clk 0:00:08]}  f5 {[%clk 0:00:04]} 55. Re1+ {[%clk 0:00:08]}  Kf6 {[%clk 0:00:03]} 56. Rd1 {[%clk 0:00:07]}  Ke6 {[%clk 0:00:04]} 57. Re1+ {[%clk 0:00:06]}  Ne4 {[%clk 0:00:04]} 58. Rf1 {[%clk 0:00:07]}  f4 {[%clk 0:00:04]} 59. h4 {[%clk 0:00:04]}  Ke5 {[%clk 0:00:04]} 60. h5 {[%clk 0:00:05]}  Kd4 {[%clk 0:00:03]} 61. Rd1+ {[%clk 0:00:04]}  Ke3 {[%clk 0:00:04]} 62. Rd7 {[%clk 0:00:05]}  f3 {[%clk 0:00:04]} 63. Rf7 {[%clk 0:00:02]}  f2 {[%clk 0:00:02]} 64. Kd1 {[%clk 0:00:02]}  Ng3 {[%clk 0:00:03]} 65. Re7+ {[%clk 0:00:02]}  Kf3 {[%clk 0:00:03]} 66. Rf7+ {[%clk 0:00:02]}  Kg2 {[%clk 0:00:04]} 0-1


[Site "https://www.chess.com"]

[Event "Titled Tuesday Blitz April 4 Early 2023"]
[White "Rian, Kapriaga"]
[Black "Golubev, Mikhail"]
[WhiteFideId "7103263"]
[BlackFideId "14100983"]
[WhiteElo "2354"]
[BlackElo "2374"]
[Result "0-1"]
[Round "08"]
[TimeControl "180+2"]
[Date "2023.04.04"]
[WhiteClock "0:00:01"]
[BlackClock "0:00:02"]

1. d4 {[%clk 0:03:00]}  Nf6 {[%clk 0:02:59]} 2. Nf3 {[%clk 0:03:00]}  d6 {[%clk 0:02:57]} 3. c4 {[%clk 0:02:58]}  g6 {[%clk 0:02:56]} 4. Nc3 {[%clk 0:02:58]}  Bg7 {[%clk 0:02:57]} 5. Bf4 {[%clk 0:02:57]}  O-O {[%clk 0:02:55]} 6. h3 {[%clk 0:02:58]}  c5 {[%clk 0:02:49]} 7. dxc5 {[%clk 0:02:47]}  dxc5 {[%clk 0:02:45]} 8. e3 {[%clk 0:02:43]}  Nc6 {[%clk 0:02:37]} 9. Be2 {[%clk 0:02:35]}  Bf5 {[%clk 0:02:30]} 10. O-O {[%clk 0:02:34]}  Ne4 {[%clk 0:02:22]} 11. Nxe4 {[%clk 0:02:29]}  Bxe4 {[%clk 0:02:19]} 12. Qb3 {[%clk 0:02:27]}  Qb6 {[%clk 0:01:51]} 13. Nd2 {[%clk 0:02:24]}  Bf5 {[%clk 0:01:44]} 14. g4 {[%clk 0:02:21]}  Be6 {[%clk 0:01:33]} 15. Rab1 {[%clk 0:02:20]}  Rfd8 {[%clk 0:01:21]} 16. Rfd1 {[%clk 0:02:18]}  Rd7 {[%clk 0:01:15]} 17. Bf3 {[%clk 0:01:29]}  Rad8 {[%clk 0:01:07]} 18. Qxb6 {[%clk 0:01:22]}  axb6 {[%clk 0:01:07]} 19. e4 {[%clk 0:00:45]}  Nd4 {[%clk 0:01:06]} 20. Kg2 {[%clk 0:00:34]}  Nxf3 {[%clk 0:01:03]} 21. Kxf3 {[%clk 0:00:34]}  Bxc4 {[%clk 0:01:03]} 22. b3 {[%clk 0:00:33]}  Bb5 {[%clk 0:00:54]} 23. a4 {[%clk 0:00:32]}  Bc6 {[%clk 0:00:53]} 24. Ke2 {[%clk 0:00:30]}  b5 {[%clk 0:00:44]} 25. axb5 {[%clk 0:00:27]}  Bxb5+ {[%clk 0:00:43]} 26. Nc4 {[%clk 0:00:27]}  Rxd1 {[%clk 0:00:34]} 27. Rxd1 {[%clk 0:00:27]}  Rxd1 {[%clk 0:00:32]} 28. Kxd1 {[%clk 0:00:27]}  Bd4 {[%clk 0:00:24]} 29. f3 {[%clk 0:00:26]}  Kf8 {[%clk 0:00:24]} 30. Kc2 {[%clk 0:00:25]}  Ke8 {[%clk 0:00:23]} 31. Kd3 {[%clk 0:00:19]}  Kd7 {[%clk 0:00:23]} 32. Bg3 {[%clk 0:00:19]}  f6 {[%clk 0:00:21]} 33. Bf4 {[%clk 0:00:18]}  e6 {[%clk 0:00:17]} 34. Bg3 {[%clk 0:00:19]}  f5 {[%clk 0:00:17]} 35. Bf4 {[%clk 0:00:18]}  e5 {[%clk 0:00:15]} 36. Bg3 {[%clk 0:00:18]}  f4 {[%clk 0:00:14]} 37. Bh4 {[%clk 0:00:18]}  Ba6 {[%clk 0:00:09]} 38. Kc2 {[%clk 0:00:15]}  Ke6 {[%clk 0:00:08]} 39. Be1 {[%clk 0:00:13]}  b5 {[%clk 0:00:06]} 40. Nb2 {[%clk 0:00:12]}  Bc8 {[%clk 0:00:05]} 41. Bh4 {[%clk 0:00:10]}  Bd7 {[%clk 0:00:04]} 42. Be1 {[%clk 0:00:08]}  Bc6 {[%clk 0:00:04]} 43. Bc3 {[%clk 0:00:08]}  b4 {[%clk 0:00:02]} 44. Bxd4 {[%clk 0:00:07]}  cxd4 {[%clk 0:00:02]} 45. Nd3 {[%clk 0:00:05]}  Bb5 {[%clk 0:00:02]} 46. Nxb4 {[%clk 0:00:02]}  Be2 {[%clk 0:00:02]} 47. Nd5 {[%clk 0:00:01]}  Bxf3 {[%clk 0:00:02]} 48. Kd3 {[%clk 0:00:02]}  Bg2 {[%clk 0:00:02]} 49. h4 {[%clk 0:00:01]}  Bf1+ {[%clk 0:00:02]} 50. Kd2 {[%clk 0:00:01]}  h6 {[%clk 0:00:02]} 0-1


[Site "https://www.chess.com"]

[Event "Titled Tuesday Blitz April 4 Early 2023"]
[White "Matveeva, Olga"]
[Black "Nguyen, Hong Anh"]
[WhiteFideId "24107018"]
[BlackFideId "12406732"]
[WhiteElo "2056"]
[BlackElo "2054"]
[Result "0-1"]
[Round "08"]
[TimeControl "180+2"]
[Date "2023.04.04"]
[WhiteClock "0:00:13"]
[BlackClock "0:00:32"]

1. d4 {[%clk 0:03:00]}  Nf6 {[%clk 0:01:25]} 2. c4 {[%clk 0:02:59]}  g6 {[%clk 0:01:22]} 3. g3 {[%clk 0:02:59]}  Bg7 {[%clk 0:01:21]} 4. Bg2 {[%clk 0:02:59]}  d5 {[%clk 0:01:22]} 5. cxd5 {[%clk 0:02:57]}  Nxd5 {[%clk 0:01:22]} 6. Nf3 {[%clk 0:02:57]}  Nb6 {[%clk 0:01:22]} 7. O-O {[%clk 0:02:56]}  O-O {[%clk 0:01:23]} 8. Nc3 {[%clk 0:02:56]}  Nc6 {[%clk 0:01:24]} 9. e3 {[%clk 0:02:55]}  Re8 {[%clk 0:01:23]} 10. Re1 {[%clk 0:02:55]}  e5 {[%clk 0:01:23]} 11. d5 {[%clk 0:02:55]}  Na5 {[%clk 0:01:23]} 12. e4 {[%clk 0:02:49]}  c6 {[%clk 0:01:24]} 13. b3 {[%clk 0:02:49]}  cxd5 {[%clk 0:01:23]} 14. exd5 {[%clk 0:02:48]}  e4 {[%clk 0:01:22]} 15. Nxe4 {[%clk 0:02:48]}  Qxd5 {[%clk 0:01:19]} 16. Nf6+ {[%clk 0:02:37]}  Bxf6 {[%clk 0:01:19]} 17. Rxe8+ {[%clk 0:02:37]}  Kg7 {[%clk 0:01:20]} 18. Qxd5 {[%clk 0:02:05]}  Nxd5 {[%clk 0:01:20]} 19. Rb1 {[%clk 0:02:02]}  Nc7 {[%clk 0:01:14]} 20. Rxc8 {[%clk 0:01:51]}  Rxc8 {[%clk 0:01:13]} 21. Bf4 {[%clk 0:01:49]}  Nd5 {[%clk 0:01:13]} 22. Bd2 {[%clk 0:01:48]}  Nc6 {[%clk 0:01:10]} 23. Rc1 {[%clk 0:01:47]}  Rd8 {[%clk 0:01:07]} 24. Kf1 {[%clk 0:01:42]}  Ndb4 {[%clk 0:01:01]} 25. a3 {[%clk 0:01:26]}  Nd3 {[%clk 0:00:56]} 26. Rc2 {[%clk 0:01:25]}  Rd7 {[%clk 0:00:53]} 27. Ke2 {[%clk 0:01:22]}  Nde5 {[%clk 0:00:50]} 28. Nxe5 {[%clk 0:01:18]}  Nd4+ {[%clk 0:00:50]} 29. Kd1 {[%clk 0:01:15]}  Bxe5 {[%clk 0:00:50]} 30. Rc3 {[%clk 0:01:02]}  Nb5 {[%clk 0:00:47]} 31. Rc5 {[%clk 0:00:50]}  Bc3 {[%clk 0:00:48]} 32. Rxb5 {[%clk 0:00:47]}  Rxd2+ {[%clk 0:00:47]} 33. Kc1 {[%clk 0:00:45]}  Rxf2 {[%clk 0:00:48]} 34. Bxb7 {[%clk 0:00:43]}  Bb2+ {[%clk 0:00:48]} 35. Kd1 {[%clk 0:00:41]}  Bxa3 {[%clk 0:00:49]} 36. h4 {[%clk 0:00:37]}  h5 {[%clk 0:00:46]} 37. Bd5 {[%clk 0:00:36]}  Bd6 {[%clk 0:00:46]} 38. Rb7 {[%clk 0:00:28]}  Bxg3 {[%clk 0:00:46]} 39. Rxa7 {[%clk 0:00:28]}  Bxh4 {[%clk 0:00:46]} 40. b4 {[%clk 0:00:25]}  Bg3 {[%clk 0:00:45]} 41. b5 {[%clk 0:00:24]}  h4 {[%clk 0:00:45]} 42. b6 {[%clk 0:00:23]}  h3 {[%clk 0:00:46]} 43. b7 {[%clk 0:00:22]}  h2 {[%clk 0:00:46]} 44. Ra3 {[%clk 0:00:19]}  Bd6 {[%clk 0:00:45]} 45. Rh3 {[%clk 0:00:17]}  g5 {[%clk 0:00:40]} 46. Ke1 {[%clk 0:00:17]}  Rb2 {[%clk 0:00:39]} 47. Kf1 {[%clk 0:00:17]}  g4 {[%clk 0:00:39]} 48. Rh4 {[%clk 0:00:15]}  g3 {[%clk 0:00:38]} 49. Rg4+ {[%clk 0:00:15]}  Kf8 {[%clk 0:00:37]} 50. Rc4 {[%clk 0:00:14]}  Ke7 {[%clk 0:00:36]} 51. Rc8 {[%clk 0:00:13]}  Rb1+ {[%clk 0:00:32]} 52. Ke2 {[%clk 0:00:12]}  h1=Q {[%clk 0:00:32]} 53. Bxh1 {[%clk 0:00:12]}  Rxh1 {[%clk 0:00:31]} 54. b8=Q {[%clk 0:00:12]}  Bxb8 {[%clk 0:00:32]} 55. Rxb8 {[%clk 0:00:13]}  g2 {[%clk 0:00:32]} 0-1


[Site "https://www.chess.com"]

[Event "Titled Tuesday Blitz April 4 Early 2023"]
[White "Baches Garcia, Guillermo"]
[Black "Fernandez Siles, Luis"]
[WhiteFideId "2209764"]
[BlackFideId "2209420"]
[WhiteElo "2454"]
[BlackElo "2195"]
[Result "0-1"]
[Round "08"]
[TimeControl "180+2"]
[Date "2023.04.04"]
[WhiteClock "0:00:19"]
[BlackClock "0:00:51"]

1. e4 {[%clk 0:03:00]}  c5 {[%clk 0:02:59]} 2. Nf3 {[%clk 0:03:01]}  Nc6 {[%clk 0:02:59]} 3. d4 {[%clk 0:03:01]}  cxd4 {[%clk 0:02:59]} 4. Nxd4 {[%clk 0:03:01]}  g6 {[%clk 0:03:00]} 5. Nc3 {[%clk 0:02:59]}  Bg7 {[%clk 0:03:00]} 6. Be3 {[%clk 0:02:59]}  Nf6 {[%clk 0:02:59]} 7. Bc4 {[%clk 0:02:59]}  d6 {[%clk 0:02:57]} 8. f3 {[%clk 0:02:56]}  O-O {[%clk 0:02:57]} 9. Qd2 {[%clk 0:02:55]}  Bd7 {[%clk 0:02:57]} 10. O-O-O {[%clk 0:02:55]}  Qa5 {[%clk 0:02:57]} 11. h4 {[%clk 0:02:44]}  Rfc8 {[%clk 0:02:56]} 12. Bb3 {[%clk 0:02:40]}  Ne5 {[%clk 0:02:56]} 13. h5 {[%clk 0:02:29]}  Rxc3 {[%clk 0:02:52]} 14. Qxc3 {[%clk 0:02:20]}  Qxc3 {[%clk 0:02:51]} 15. bxc3 {[%clk 0:02:21]}  Nxh5 {[%clk 0:02:51]} 16. Kb2 {[%clk 0:02:12]}  Nf6 {[%clk 0:02:43]} 17. Bh6 {[%clk 0:02:07]}  Bxh6 {[%clk 0:02:33]} 18. Rxh6 {[%clk 0:02:06]}  Kg7 {[%clk 0:02:32]} 19. Rhh1 {[%clk 0:01:56]}  h5 {[%clk 0:02:32]} 20. Ne2 {[%clk 0:01:45]}  a5 {[%clk 0:02:27]} 21. a3 {[%clk 0:01:43]}  a4 {[%clk 0:02:25]} 22. Ba2 {[%clk 0:01:43]}  Rc8 {[%clk 0:02:25]} 23. Nf4 {[%clk 0:01:40]}  Rc6 {[%clk 0:02:02]} 24. Nd3 {[%clk 0:01:38]}  Nc4+ {[%clk 0:01:49]} 25. Bxc4 {[%clk 0:01:33]}  Rxc4 {[%clk 0:01:50]} 26. Nb4 {[%clk 0:01:26]}  Rc5 {[%clk 0:01:38]} 27. Rd4 {[%clk 0:01:18]}  b5 {[%clk 0:01:22]} 28. Rhd1 {[%clk 0:01:15]}  Rg5 {[%clk 0:01:21]} 29. R1d2 {[%clk 0:01:09]}  Be6 {[%clk 0:01:21]} 30. Nd3 {[%clk 0:00:49]}  Nd7 {[%clk 0:01:16]} 31. f4 {[%clk 0:00:40]}  Rg3 {[%clk 0:01:03]} 32. e5 {[%clk 0:00:37]}  Nb6 {[%clk 0:01:03]} 33. exd6 {[%clk 0:00:32]}  exd6 {[%clk 0:00:57]} 34. Nb4 {[%clk 0:00:22]}  Nc4+ {[%clk 0:00:54]} 35. Rxc4 {[%clk 0:00:21]}  Bxc4 {[%clk 0:00:55]} 36. Rxd6 {[%clk 0:00:19]}  Rxg2 {[%clk 0:00:53]} 37. Nc6 {[%clk 0:00:19]}  h4 {[%clk 0:00:51]} 0-1


[Site "https://www.chess.com"]